bitfinex/quotes_ETHUSD_20241231
["timestamp","ask_amount","ask_price","bid_price","bid_amount"]
[1735619153217,1.25602193,3349.3,3348.7,2.98623]
[1735619153709,1.84258028,3349.3,3348.4,3.0]
[1735619153914,0.2698,3349.2,3348.5,2.98639]
[1735619154415,1.52582193,3349.2,3348.5,2.98639]
[1735619155183,1.52582193,3349.2,3348.6,2.98628]
[1735619155852,1.25602193,3349.1,3348.6,2.98628]
[1735619156684,1.25602193,3349.0,3348.6,2.98628]
[1735619160022,0.2698,3348.9,3348.4,2.98648]
[1735619160223,0.2698,3348.9,3348.3,6.5]
[1735619160425,0.2698,3348.8,3348.3,6.5]
[1735619160704,0.2698,3348.8,3348.2,2.98666]
[1735619161314,0.2698,3348.8,3348.5,2.98639]
[1735619161515,1.25602193,3348.7,3348.5,2.98639]
[1735619162727,0.2698,3348.8,3348.5,2.98639]
[1735619164370,1.25602193,3348.9,3348.6,2.98632]
[1735619164662,1.25602193,3348.9,3348.4,0.7684]
[1735619164867,1.25602193,3348.9,3348.6,2.98627]
[1735619165167,1.25602193,3349.0,3348.6,2.98627]
[1735619165365,1.25602193,3349.0,3348.7,3.7546]
[1735619166468,1.52582193,3349.1,3348.7,3.7546]
[1735619170182,1.25602193,3349.0,3348.7,3.7546]
[1735619171075,1.52582193,3349.1,3348.7,0.7684]
[1735619171369,1.52582193,3349.1,3348.8,2.9861]
[1735619172289,1.25602193,3349.1,3348.8,2.9861]
[1735619175387,1.25602193,3349.0,3348.8,2.9861]
[1735619177298,1.25602193,3349.1,3348.8,2.9861]
[1735619179189,1.25602193,3349.1,3348.7,0.7684]
[1735619179349,1.25602193,3349.1,3348.9,2.98604]
[1735619181727,1.25602193,3349.1,3349.0,2.98596]
[1735619182788,0.2698,3349.2,3349.0,2.98596]
[1735619182992,0.73720352,3349.2,3348.8,2.98612]
[1735619183220,0.2698,3349.2,3348.7,0.7684]
[1735619183417,1.25602193,3349.3,3349.0,2.98594]
[1735619183593,1.25602193,3349.3,3349.1,2.98583]
[1735619183796,1.8598978,3349.2,3349.1,2.98583]
[1735619184544,1.8598978,3349.2,3348.8,2.98606]
[1735619185251,1.8598978,3349.3,3348.8,2.98606]
[1735619185905,1.8598978,3349.3,3348.7,0.7684]
[1735619186248,1.8598978,3349.3,3348.9,2.98605]
[1735619186544,1.256463,3349.0,3348.9,2.98605]
[1735619187946,1.206463,3349.0,3348.9,2.98605]
[1735619188949,1.8598978,3349.3,3348.9,2.98605]
[1735619189247,1.8598978,3349.3,3349.0,2.98596]
[1735619190742,1.8598978,3349.3,3349.2,2.98578]
[1735619191314,1.8598978,3349.4,3349.2,2.98578]
[1735619192679,1.8598978,3349.6,3349.2,2.98578]
[1735619193383,2.22002566,3349.6,3349.2,2.98578]
[1735619193693,1.8598978,3349.5,3349.2,2.98578]
[1735619194475,1.8598978,3349.5,3348.9,0.8281]
[1735619194780,1.8598978,3349.5,3348.9,3.81407]
[1735619195379,1.8598978,3349.5,3348.9,0.8281]
[1735619195539,1.8598978,3349.5,3349.0,2.98595]
[1735619196057,1.8598978,3349.3,3349.0,2.98595]
[1735619196883,1.8598978,3349.3,3349.1,2.98587]
[1735619198492,1.25614303,3349.3,3349.1,2.98587]
[1735619199543,1.25614303,3349.3,3349.1,4.017267]
[1735619200487,1.8598978,3349.5,3349.1,4.017267]
[1735619200488,1.25614303,3349.4,3349.1,4.017267]
[1735619200684,1.25614303,3349.4,3349.1,2.98587]
[1735619201285,1.25614303,3349.3,3349.1,2.98587]
[1735619205292,0.2698,3349.2,3348.9,2.98605]
[1735619205494,0.2698,3349.2,3348.5,0.7865]
[1735619205798,1.2883155,3349.1,3348.5,3.7865]
[1735619205992,1.52594303,3349.2,3348.6,1.4509406]
[1735619206563,1.52594303,3349.2,3348.7,2.98622]
[1735619206961,1.25614303,3348.9,3348.5,2.98633]
[1735619207175,1.25614303,3348.9,3348.6,2.98629]
[1735619211807,1.25614303,3348.8,3348.6,2.98629]
[1735619211968,1.25614303,3348.8,3348.6,3.284919]
[1735619212907,1.25614303,3348.9,3348.6,3.284919]
[1735619213109,1.25614303,3348.9,3348.7,0.7865]
[1735619213297,1.25614303,3348.9,3348.8,2.98614]
[1735619213463,1.25614303,3348.9,3348.8,5.98614]
[1735619213669,1.25614303,3348.9,3348.8,7.77073145]
[1735619213884,1.25614303,3348.9,3348.8,5.56013145]
[1735619214295,1.25614303,3349.2,3349.1,2.98587]
[1735619215265,1.25614303,3349.4,3349.1,2.98587]
[1735619219206,1.25614303,3349.4,3348.8,0.7894]
[1735619219409,1.25614303,3349.4,3348.9,2.98598]
[1735619219595,1.25614303,3349.3,3348.9,2.98598]
[1735619221182,1.25614303,3349.2,3348.9,2.98598]
[1735619221878,1.25614303,3349.2,3349.0,2.98593]
[1735619225225,1.25614303,3349.2,3348.8,3.77546]
[1735619225884,1.25614303,3349.1,3348.9,2.98603]
[1735619227088,1.25614303,3349.2,3348.9,2.98603]
[1735619228303,1.25614303,3349.1,3348.9,2.98603]
[1735619230630,1.25614303,3349.1,3348.6,0.7874]
[1735619230843,1.25614303,3349.1,3348.7,2.9862]
[1735619232232,1.25614303,3349.1,3348.6,2.2384256]
[1735619232431,1.25614303,3349.1,3348.8,2.98611]
[1735619235744,1.25614303,3349.1,3348.9,2.98604]
[1735619236731,1.25614303,3349.1,3349.0,3.77336]
[1735619237511,1.25614303,3349.3,3349.2,2.98578]
[1735619238734,1.25614303,3349.5,3349.0,3.77336]
[1735619238937,1.25614303,3349.5,3349.4,2.9856]
[1735619241059,1.25614303,3349.6,3349.4,2.9856]
[1735619244636,1.25614303,3349.6,3349.1,1.14458066]
[1735619244637,1.25614303,3349.6,3349.2,2.98577]
[1735619244983,0.2698,3349.5,3349.0,3.77333]
[1735619245185,0.2698,3349.5,3349.0,2.98593]
[1735619245345,0.2698,3349.5,3348.9,6.5]
[1735619245673,0.2698,3349.5,3348.8,2.98612]
[1735619246081,0.2698,3349.5,3348.9,2.98598]
[1735619246240,0.2698,3349.5,3348.7,2.01259599]
[1735619246438,0.2698,3349.5,3349.0,2.98588]
[1735619246638,1.25614303,3349.3,3349.0,2.98588]
[1735619250349,1.5581155,3349.2,3348.7,2.98615]
[1735619250571,1.5581155,3349.2,3348.5,2.98638]
[1735619251285,1.25614303,3349.1,3348.6,2.98632]
[1735619252185,0.2698,3348.9,3348.4,2.98647]
[1735619252550,1.52594303,3348.9,3348.4,2.98647]
[1735619253164,1.52594303,3348.9,3348.5,2.98639]
[1735619253580,1.25614303,3348.7,3348.5,2.98639]
[1735619254790,1.25614303,3348.9,3348.6,0.7761]
[1735619254967,1.25614303,3348.9,3348.8,2.98614]
[1735619256184,1.25614303,3349.0,3348.8,2.98614]
[1735619257466,1.25614303,3349.1,3348.8,2.98614]
[1735619257667,1.25614303,3349.1,3348.8,0.376224]
[1735619257899,1.52594303,3349.1,3348.6,3.76239]
[1735619258054,1.52594303,3349.1,3348.6,2.98629]
[1735619258651,1.25614303,3349.0,3348.6,2.98629]
[1735619258963,0.2698,3348.9,3348.6,2.98629]
[1735619259303,0.2698,3348.9,3348.3,2.98654]
[1735619259615,1.25614303,3349.0,3348.7,2.9862]
[1735619260060,1.25614303,3348.9,3348.7,2.9862]
[1735619260688,1.25614303,3348.9,3348.8,2.98614]
[1735619261176,1.25614303,3349.0,3348.9,2.98605]
[1735619261383,1.25614303,3349.0,3348.9,3.79065]
[1735619261569,1.25614303,3349.0,3348.9,4.468342]
[1735619262192,1.25614303,3349.3,3349.2,2.98578]
[1735619264027,1.25614303,3349.7,3349.5,2.98549]
[1735619264177,1.25614303,3349.7,3349.3,2.98564]
[1735619264385,1.25614303,3349.7,3348.9,10.968282]
[1735619264586,1.25614303,3349.7,3349.4,2.98559]
[1735619264921,1.52594303,3349.8,3349.4,2.98559]
[1735619265848,1.25614303,3349.7,3349.4,2.98559]
[1735619268195,1.25614303,3349.7,3349.3,0.8264]
[1735619268431,1.25614303,3349.7,3349.2,2.98577]
[1735619269208,1.25614303,3349.7,3349.3,2.98567]
[1735619269591,1.25614303,3349.6,3349.3,2.98567]
[1735619270135,1.25614303,3349.6,3349.4,2.98558]
[1735619270335,1.25614303,3349.6,3349.5,0.298558]
[1735619270531,1.25614303,3349.6,3349.4,2.98558]
[1735619270725,1.52594303,3349.8,3349.4,2.98558]
[1735619271899,1.25614303,3349.8,3349.4,3.81198]
[1735619272329,1.25614303,3349.9,3349.4,3.81198]
[1735619273239,1.25614303,3349.9,3349.6,2.98539]
[1735619273548,1.25614303,3349.9,3349.8,2.98525]
[1735619273738,1.25614303,3349.9,3349.8,3.75155]
[1735619274846,1.25614303,3350.4,3350.1,2.98498]
[1735619275853,1.25614303,3350.5,3349.8,2.98525]
[1735619276150,1.25614303,3350.5,3350.4,3.75101]
[1735619277552,0.2698,3350.9,3350.4,3.75101]
[1735619278345,0.35652786,3350.8,3350.4,3.75101]
[1735619279558,0.2698,3350.9,3350.4,3.75101]
[1735619280356,0.62632786,3350.9,3350.4,3.75101]
[1735619280859,0.96104204,3350.9,3350.4,3.75101]
[1735619283353,0.96104204,3350.9,3350.4,4.126111]
[1735619286272,2.24824824,3350.9,3350.4,4.126111]
[1735619286620,2.24824824,3350.9,3350.0,9.48501]
[1735619286621,1.2872062,3350.6,3350.2,2.98487]
[1735619287355,1.2872062,3350.6,3350.1,0.7519]
[1735619287553,1.2872062,3350.4,3349.8,0.7519]
[1735619287715,1.2872062,3350.4,3349.9,2.98515]
[1735619288453,1.2872062,3350.4,3349.8,0.7519]
[1735619288657,1.2872062,3350.2,3349.7,2.98533]
[1735619289453,1.2872062,3350.2,3349.8,2.98524]
[1735619289654,1.2872062,3350.4,3349.8,2.98516]
[1735619290244,0.2698,3350.5,3349.8,2.98516]
[1735619290645,1.06352495,3350.5,3349.8,2.98516]
[1735619291454,0.2698,3350.5,3349.8,2.98516]
[1735619291656,0.2698,3350.5,3349.9,2.98515]
[1735619301290,0.2698,3350.5,3349.6,0.7982]
[1735619301470,0.2698,3350.5,3349.7,2.98531]
[1735619302778,1.52594303,3350.5,3349.7,2.98531]
[1735619302978,2.75208313,3350.5,3349.7,2.98531]
[1735619303681,2.75208313,3350.5,3349.6,0.7982]
[1735619303682,1.25614303,3350.4,3349.6,0.7982]
[1735619303975,0.2698,3350.3,3349.5,2.9855]
[1735619304477,1.52594303,3350.3,3349.5,2.9855]
[1735619305470,1.25614303,3350.3,3349.5,2.9855]
[1735619305677,1.52594303,3350.2,3349.5,2.9855]
[1735619308079,1.25614303,3350.1,3349.5,2.9855]
[1735619308250,1.25614303,3350.1,3349.4,1.9169396]
[1735619308448,1.25614303,3350.1,3349.6,2.98541]
[1735619312233,1.25614303,3350.1,3349.4,0.7719]
[1735619312443,1.25614303,3350.1,3349.9,2.98514]
[1735619313187,1.52594303,3350.2,3349.9,2.98514]
[1735619313976,1.28776323,3350.1,3349.9,2.98514]
[1735619314162,1.28776323,3350.1,3349.7,2.98531]
[1735619315271,2.54390626,3350.1,3349.4,3.75746]
[1735619315475,2.54390626,3350.1,3349.5,0.375746]
[1735619316045,2.54390626,3350.1,3349.8,2.98524]
[1735619316476,1.28776323,3350.1,3349.8,2.98524]
[1735619317581,2.54390626,3350.1,3349.8,2.98524]
[1735619320685,2.54390626,3350.1,3349.6,2.9854]
[1735619320889,1.28776323,3349.9,3349.6,2.9854]
[1735619321048,1.28776323,3349.9,3349.6,3.3987046]
[1735619321445,1.28776323,3349.9,3349.7,2.98533]
[1735619321864,2.54390626,3350.1,3349.7,2.98533]
[1735619322367,1.25614303,3350.0,3349.7,2.98533]
[1735619329195,3.14766103,3350.1,3349.7,2.98533]
[1735619329196,1.25614303,3349.9,3349.7,2.98533]
[1735619330303,1.25614303,3349.9,3349.8,2.98525]
[1735619330595,1.25614303,3349.9,3349.8,3.283775]
[1735619330768,1.25614303,3349.9,3349.8,4.067775]
[1735619331201,2.47986373,3350.2,3349.8,4.067775]
[1735619331202,1.25614303,3350.0,3349.8,4.067775]
[1735619331371,1.25614303,3350.0,3349.8,3.76925]
[1735619332975,1.25614303,3350.0,3349.8,0.784]
[1735619333163,1.25614303,3350.0,3349.9,2.98516]
[1735619334700,1.8598978,3350.0,3349.9,2.98516]
[1735619335797,1.8598978,3350.0,3349.5,9.48545]
[1735619335798,1.8598978,3350.1,3350.0,3.78867]
[1735619336000,1.8598978,3350.1,3350.0,4.466066]
[1735619336990,3.7197956,3350.7,3350.0,4.466066]
[1735619336991,1.25654766,3350.3,3350.0,4.466066]
[1735619337160,1.25654766,3350.3,3350.2,2.98489]
[1735619341798,1.25654766,3350.3,3349.8,7.3036]
[1735619341965,1.25654766,3350.3,3350.1,2.98495]
[1735619343623,1.25654766,3350.3,3349.8,0.8036]
[1735619343805,1.28776323,3350.1,3349.8,2.98516]
[1735619344823,1.25654766,3350.0,3349.8,2.98516]
[1735619347130,1.25654766,3350.1,3349.8,2.98516]
[1735619350243,1.25654766,3350.1,3349.5,0.8036]
[1735619350423,1.25654766,3350.1,3349.9,2.98516]
[1735619354105,1.25654766,3350.1,3349.5,3.78907]
[1735619354106,1.25654766,3350.1,3350.0,2.98507]
[1735619354303,1.8598978,3350.2,3350.0,2.98507]
[1735619355534,1.25609647,3350.1,3350.0,2.98507]
[1735619366250,1.8598978,3350.2,3350.0,2.98507]
[1735619370626,1.8598978,3350.2,3350.1,2.98498]
[1735619370841,1.8598978,3350.2,3350.1,4.120798]
[1735619372040,3.09982966,3350.5,3350.2,2.98489]
[1735619372041,1.25627555,3350.3,3350.2,2.98489]
[1735619376209,1.8598978,3350.4,3350.2,2.98489]
[1735619377172,1.8598978,3350.3,3349.7,0.7612]
[1735619377367,1.8598978,3350.3,3349.8,2.98523]
[1735619378682,1.25653382,3350.0,3349.6,2.98541]
[1735619379366,1.25653382,3349.9,3349.6,2.98541]
[1735619380429,1.25653382,3349.9,3349.7,2.98531]
[1735619387624,1.25653382,3349.9,3349.5,0.7946]
[1735619387774,1.25653382,3349.9,3349.5,1.9462796]
[1735619387974,1.25653382,3349.9,3349.7,2.98526]
[1735619392615,1.25653382,3349.9,3349.5,0.7946]
[1735619392791,1.25653382,3349.9,3349.8,2.98525]
[1735619400133,1.25653382,3349.9,3349.5,0.7946]
[1735619400443,1.28776323,3349.6,3349.3,7.73649599]
[1735619400733,1.28776323,3349.4,3349.3,1.23649599]
[1735619401336,1.28776323,3349.4,3349.0,4.22245599]
[1735619402095,0.2698,3349.5,3349.2,2.98576]
[1735619402728,1.25653382,3349.7,3349.6,2.98543]
[1735619402916,3.09982966,3349.7,3349.6,2.98543]
[1735619403112,3.09982966,3349.7,3349.6,3.76473]
[1735619403530,3.09982966,3349.7,3349.6,2.98543]
[1735619403710,5.89732476,3350.3,3349.7,2.98534]
[1735619403711,1.25591771,3349.8,3349.7,2.98534]
[1735619404643,2.51183543,3350.1,3349.8,2.98516]
[1735619404644,1.25591771,3350.0,3349.8,2.98516]
[1735619404940,1.25591771,3350.0,3349.9,0.298516]
[1735619405147,1.25591771,3350.0,3349.8,2.98516]
[1735619407803,1.25591771,3350.0,3349.9,2.98516]
[1735619408033,1.25591771,3350.0,3349.9,3.76446]
[1735619409049,1.52571771,3350.0,3349.7,2.98531]
[1735619409945,1.64428788,3349.9,3349.2,7.73649599]
[1735619410179,1.28776323,3349.5,3349.2,7.73649599]
[1735619410523,1.28776323,3349.5,3349.2,1.23649599]
[1735619410723,2.54368094,3349.5,3349.0,2.98595]
[1735619411456,1.25591771,3349.5,3348.8,2.98614]
[1735619411641,1.25591771,3349.5,3348.9,1.4471506]
[1735619411847,1.25591771,3349.5,3349.1,2.98584]
[1735619412033,1.25591771,3349.3,3349.1,2.98584]
[1735619412657,1.25591771,3349.3,3349.2,2.98578]
[1735619413261,1.25591771,3349.3,3349.2,3.74838]
[1735619413461,1.25591771,3349.4,3349.3,2.98569]
[1735619414880,1.25591771,3349.7,3349.3,2.98569]
[1735619415987,0.2698,3349.6,3349.0,6.5]
[1735619416148,0.41458331,3349.5,3349.0,6.5]
[1735619416479,0.64799131,3349.6,3349.0,6.5]
[1735619416681,0.64799131,3349.6,3348.8,2.98613]
[1735619417357,1.25591771,3349.4,3348.8,2.98613]
[1735619418182,2.99100564,3349.3,3348.6,6.5]
[1735619418344,0.46251147,3349.2,3348.6,6.5]
[1735619418541,3.72724446,3349.3,3348.5,2.98639]
[1735619419788,1.25591771,3349.0,3348.5,2.98639]
[1735619420589,0.2698,3348.9,3348.3,2.98658]
[1735619422212,0.2698,3348.9,3347.8,6.5]
[1735619422524,0.2698,3348.9,3348.1,2.98672]
[1735619422728,0.91166399,3348.9,3348.1,2.98672]
[1735619422903,0.2698,3348.8,3348.1,2.98672]
[1735619424342,0.2698,3348.8,3347.9,2.98692]
[1735619424506,0.2698,3348.8,3348.0,2.98685]
[1735619427504,0.91166399,3348.9,3347.6,6.5]
[1735619427505,0.2698,3348.6,3347.6,6.5]
[1735619427708,0.2698,3348.6,3348.0,2.98685]
[1735619430425,0.2698,3348.6,3347.8,2.98702]
[1735619430625,0.2698,3348.6,3347.9,2.98692]
[1735619431011,0.2698,3348.6,3347.3,6.5]
[1735619431219,0.64799131,3348.5,3347.6,2.98713]
[1735619431416,0.64799131,3348.5,3347.7,2.98703]
[1735619431624,0.64799131,3348.5,3347.8,2.98702]
[1735619432554,0.2698,3348.5,3347.7,0.812]
[1735619432767,0.2698,3348.5,3348.0,2.98683]
[1735619433066,0.2698,3348.5,3347.8,1.029929]
[1735619433225,0.2698,3348.5,3347.5,6.5]
[1735619433839,0.2698,3348.5,3347.5,0.812]
[1735619434038,0.2698,3348.5,3347.6,1.09629046]
[1735619434566,0.2698,3348.5,3348.0,2.98677]
[1735619439870,0.2698,3348.5,3347.7,6.5]
[1735619440071,0.2698,3348.9,3348.4,2.98649]
[1735619440291,0.2698,3348.9,3348.4,3.80329]
[1735619440492,0.2698,3348.9,3348.5,3.366719]
[1735619440910,0.2698,3348.9,3348.2,6.5]
[1735619441083,0.2698,3348.9,3348.4,2.98648]
[1735619442619,0.2698,3348.9,3348.5,2.98636]
[1735619442834,0.2698,3349.3,3348.6,2.98631]
[1735619445419,0.37819131,3349.2,3348.6,2.98631]
[1735619449836,0.37819131,3349.2,3348.3,6.5]
[1735619450138,0.2698,3349.3,3348.5,0.8168]
[1735619450910,0.2698,3349.3,3348.8,2.98613]
[1735619456255,1.52571771,3349.3,3348.8,2.98613]
[1735619457159,0.2698,3349.3,3348.8,2.98613]
[1735619458259,1.52571771,3349.3,3348.8,2.98613]
[1735619460270,2.81416252,3349.3,3348.8,2.98613]
[1735619460622,1.52571771,3349.3,3348.9,2.98602]
[1735619460824,1.25591771,3349.2,3348.9,2.98602]
[1735619461051,1.25591771,3349.2,3349.1,2.98587]
[1735619462036,1.25591771,3349.6,3349.0,7.3026]
[1735619462241,1.25591771,3349.6,3349.2,2.98572]
[1735619463281,1.25591771,3349.7,3349.0,0.8026]
[1735619463487,1.25591771,3349.7,3349.4,2.98557]
[1735619464291,0.2698,3349.8,3349.4,2.98557]
[1735619464586,0.2698,3349.8,3349.2,6.5]
[1735619464744,1.25591771,3349.9,3349.3,0.7739]
[1735619464941,1.25591771,3349.9,3349.3,3.75954]
[1735619465188,1.25591771,3349.9,3349.5,0.7739]
[1735619465539,1.25591771,3350.0,3349.8,2.98525]
[1735619466786,1.25591771,3350.0,3349.9,2.98516]
[1735619466985,3.36962966,3350.4,3349.9,2.98516]
[1735619466986,1.52571771,3350.4,3349.9,2.98516]
[1735619468396,1.52571771,3350.4,3349.7,6.5]
[1735619468397,0.62373298,3350.4,3349.7,6.5]
[1735619468695,0.71148115,3350.3,3349.7,9.48533]
[1735619471980,0.71148115,3350.3,3349.7,7.6361196]
[1735619472182,0.2698,3350.4,3349.9,2.98515]
[1735619472980,0.2698,3350.4,3350.0,2.98499]
[1735619473155,0.2698,3350.4,3350.1,2.98498]
[1735619474755,0.2698,3350.6,3350.1,2.98498]
[1735619475798,0.2698,3350.6,3350.0,0.7606]
[1735619475998,0.35754817,3350.5,3349.9,6.5]
[1735619476163,0.71148115,3350.5,3349.9,6.5]
[1735619476663,0.71148115,3350.5,3349.9,2.98515]
[1735619477313,0.2698,3350.4,3349.7,2.98532]
[1735619477603,0.62734817,3350.4,3349.7,2.98532]
[1735619478406,0.62734817,3350.4,3349.8,2.98525]
[1735619481820,3.2698,3350.2,3349.4,6.5]
[1735619482122,2.72081951,3350.0,3349.4,6.5]
[1735619482295,0.2698,3349.9,3349.4,6.5]
[1735619482677,0.2698,3349.9,3349.1,2.98586]
[1735619483387,0.2698,3349.8,3348.9,2.98604]
[1735619483597,2.72081951,3349.7,3348.7,2.98623]
[1735619483787,0.2698,3349.6,3348.7,2.98623]
[1735619484112,0.62734817,3349.6,3348.7,2.98623]
[1735619484317,0.2698,3349.5,3348.7,2.98623]
[1735619484521,0.2698,3349.3,3348.7,2.98623]
[1735619486035,0.2698,3349.3,3348.8,2.98611]
[1735619487505,0.2698,3349.3,3348.5,0.8194]
[1735619488130,0.2698,3349.3,3348.7,2.98619]
[1735619488508,0.2698,3349.3,3348.8,2.98614]
[1735619501453,0.2698,3349.3,3348.6,2.98628]
[1735619501759,0.2698,3349.2,3348.4,2.98648]
[1735619503918,1.52571771,3349.2,3348.4,2.98648]
[1735619504556,0.2698,3349.1,3348.4,2.98648]
[1735619508075,0.2698,3349.1,3348.5,0.02986313]
[1735619508247,0.2698,3349.1,3348.9,2.98604]
[1735619509356,0.2698,3349.1,3348.5,2.98638]
[1735619510077,0.2698,3349.1,3348.6,2.98629]
[1735619512071,0.2698,3349.1,3348.7,2.98623]
[1735619513073,0.2698,3349.1,3348.8,2.98612]
[1735619513279,0.2698,3349.1,3348.8,3.284732]
[1735619513639,0.2698,3349.1,3348.8,0.298612]
[1735619513838,0.2698,3349.1,3348.9,2.98602]
[1735619514034,1.52571771,3349.4,3349.0,2.9859]
[1735619514678,0.2698,3349.4,3349.0,2.9859]
[1735619516281,0.2698,3349.4,3348.6,7.3279]
[1735619516484,1.87965069,3349.7,3349.2,2.98577]
[1735619516696,4.87965069,3349.7,3349.2,2.98577]
[1735619516891,1.52571771,3349.7,3349.2,2.98577]
[1735619517243,1.52571771,3349.7,3349.3,2.98569]
[1735619517483,1.52571771,3349.7,3349.4,2.9856]
[1735619517844,1.25591771,3349.7,3349.1,0.7622]
[1735619518062,1.25591771,3349.9,3349.7,2.98529]
[1735619518252,1.25591771,3349.9,3349.8,2.98525]
[1735619519154,0.2698,3350.2,3349.8,2.98525]
[1735619520397,0.2698,3350.2,3349.5,7.2622]
[1735619520698,0.2698,3350.2,3349.9,2.98515]
[1735619521596,0.2698,3350.2,3349.7,2.98533]
[1735619522503,1.52571771,3350.2,3349.8,2.98517]
[1735619522953,1.52571771,3350.2,3349.6,0.7622]
[1735619523161,1.52571771,3350.2,3349.9,2.98515]
[1735619523674,0.2698,3350.2,3349.9,2.98515]
[1735619526409,1.25591771,3350.4,3350.1,2.98498]
[1735619526736,1.25591771,3350.4,3350.2,2.98488]
[1735619526907,1.25591771,3350.4,3350.3,0.298488]
[1735619527267,1.25591771,3350.4,3350.3,3.283288]
[1735619527564,1.25591771,3350.5,3350.3,3.283288]
[1735619527762,1.25591771,3350.5,3350.3,2.9848]
[1735619528197,1.25591771,3350.5,3350.1,2.98498]
[1735619528598,1.25591771,3350.5,3350.2,2.98489]
[1735619528803,0.2698,3350.7,3350.2,2.98489]
[1735619529379,0.2698,3350.7,3350.3,2.98472]
[1735619530558,1.59055755,3350.8,3350.3,3.78092]
[1735619530751,1.59055755,3350.8,3350.3,2.98472]
[1735619531408,0.33463984,3350.8,3350.3,2.98472]
[1735619534049,0.2698,3350.7,3350.1,2.98496]
[1735619534278,0.60103298,3350.7,3349.9,6.5]
[1735619534426,0.93567282,3350.7,3349.9,6.5]
[1735619534629,0.93567282,3350.7,3349.9,2.98513]
[1735619534839,4.96988436,3350.7,3349.9,2.98513]
[1735619535031,0.2698,3350.6,3349.9,2.98513]
[1735619536817,2.99061951,3350.5,3349.7,2.98532]
[1735619537146,0.2698,3350.4,3349.9,2.98515]
[1735619537716,0.2698,3350.4,3349.4,3.78174]
[1735619537949,0.2698,3350.4,3349.7,2.9853]
[1735619539564,4.25591771,3350.5,3349.5,2.98551]
[1735619539565,0.2698,3350.2,3349.5,2.98551]
[1735619540063,0.2698,3350.1,3349.3,2.98569]
[1735619540229,0.2698,3350.1,3349.2,6.5]
[1735619540429,0.2698,3350.0,3349.2,9.48573]
[1735619540659,0.2698,3350.0,3349.2,2.98573]
[1735619541171,3.0,3349.9,3349.2,2.98573]
[1735619541345,3.0,3349.9,3348.9,0.7962]
[1735619541346,0.2698,3349.8,3349.3,2.98568]
[1735619547248,0.2698,3349.8,3349.3,2.88068]
[1735619548578,0.2698,3349.8,3349.1,2.98587]
[1735619548875,0.2698,3349.8,3349.6,2.98542]
[1735619549179,1.25591771,3350.1,3349.4,0.7744]
[1735619549377,1.25591771,3350.1,3350.0,2.98507]
[1735619550163,1.25591771,3350.5,3350.2,2.98489]
[1735619550436,1.84806068,3350.5,3349.7,0.7744]
[1735619550774,1.58715069,3350.5,3350.1,2.98496]
[1735619551086,1.58715069,3350.5,3349.8,2.98525]
[1735619551256,1.88387657,3350.6,3349.7,0.7744]
[1735619551257,0.2698,3350.7,3350.3,2.9848]
[1735619551453,0.2698,3350.7,3350.3,3.28328]
[1735619551657,0.2698,3350.7,3350.3,2.9848]
[1735619559193,0.2698,3350.7,3350.2,0.7744]
[1735619559490,1.52571771,3350.9,3350.5,2.98462]
[1735619560692,0.2698,3350.9,3350.5,2.98462]
[1735619561758,0.60443984,3350.9,3350.5,2.98462]
[1735619561987,1.86035755,3350.9,3350.5,2.98462]
[1735619562572,1.86035755,3350.9,3350.2,7.2744]
[1735619562772,2.19159053,3350.9,3350.3,2.98478]
[1735619563756,0.66587282,3350.8,3350.1,2.98496]
[1735619564403,0.66587282,3350.8,3350.2,2.98489]
[1735619564702,1.92179053,3350.8,3350.2,2.98489]
[1735619566205,1.58715069,3350.8,3350.3,2.9848]
[1735619566499,1.58715069,3350.8,3350.4,2.98471]
[1735619566500,1.25591771,3350.8,3350.4,2.98471]
[1735619567509,1.25591771,3350.8,3350.5,2.98462]
[1735619567678,1.52571771,3350.9,3350.3,0.7935]
[1735619567859,1.52571771,3350.9,3350.3,1.821348]
[1735619568512,1.52571771,3350.9,3350.5,2.98454]
[1735619568870,0.2698,3350.9,3350.5,2.98454]
[1735619570213,1.52571771,3350.9,3350.5,2.98454]
[1735619573116,1.25591771,3350.9,3350.3,0.7935]
[1735619573311,1.25591771,3350.9,3350.4,0.72935]
[1735619573469,1.25591771,3350.9,3350.7,2.98437]
[1735619573812,1.25591771,3351.0,3350.7,2.98437]
[1735619575010,0.2698,3351.1,3350.7,2.98437]
[1735619577073,0.2698,3351.1,3350.5,2.98462]
[1735619577474,0.2698,3351.1,3350.6,2.98453]
[1735619579213,1.5509452,3351.1,3350.3,9.48477]
[1735619579512,1.88217818,3351.1,3350.3,9.48477]
[1735619579689,1.88217818,3351.1,3350.3,2.98477]
[1735619580213,1.25591771,3351.0,3350.3,2.98477]
[1735619580413,0.2698,3350.8,3350.1,6.5]
[1735619580710,0.2698,3350.8,3350.0,9.48503]
[1735619581399,1.52571771,3350.8,3350.0,9.48503]
[1735619582011,0.2698,3350.7,3350.0,9.48503]
[1735619582379,0.2698,3350.7,3350.1,2.98496]
[1735619582917,1.52571771,3350.7,3350.1,2.98496]
[1735619583133,1.52571771,3350.7,3350.3,2.9848]
[1735619583679,1.25591771,3350.7,3350.5,2.98462]
[1735619584111,1.25591771,3350.9,3350.5,2.98462]
[1735619584316,1.25591771,3350.9,3350.3,1.75078]
[1735619584618,1.25591771,3350.9,3350.7,2.98437]
[1735619585116,1.25591771,3350.9,3350.8,2.98436]
[1735619585312,3.0,3351.2,3350.8,2.98436]
[1735619585712,4.52571771,3351.3,3350.8,2.98436]
[1735619586531,3.93567282,3351.3,3350.8,2.98436]
[1735619587221,0.33123298,3351.2,3350.6,2.98451]
[1735619587512,0.33123298,3351.2,3350.7,2.98442]
[1735619588797,0.33123298,3351.2,3350.6,6.5]
[1735619588979,0.85039203,3351.2,3350.6,6.5]
[1735619589522,0.85039203,3351.2,3350.4,2.98463]
[1735619590025,2.10630974,3351.2,3350.4,2.98463]
[1735619590822,0.60443984,3351.1,3350.4,2.98463]
[1735619591133,3.93567282,3351.1,3350.4,2.98463]
[1735619591436,6.2231351,3351.1,3350.4,2.98463]